bitfinex-derivatives/quotes_BTCF0:USTF0_20240814
["timestamp","ask_amount","ask_price","bid_price","bid_amount"]
[1723665295517,0.08497859,59002.0,59001.0,0.16]
[1723665295707,0.08497859,59002.0,59000.0,0.02173346]
[1723665295708,0.001,59001.0,59000.0,0.02173346]
[1723665296215,0.25529658,59001.0,59000.0,0.02173346]
[1723665296410,0.34002358,59001.0,59000.0,0.02173346]
[1723665297606,0.34002358,59001.0,59000.0,0.01473346]
[1723665297818,0.34002358,59001.0,59000.0,0.006]
[1723665298015,0.34002358,59001.0,58998.0,0.084731]
[1723665298016,0.08473,58999.0,58998.0,0.084731]
[1723665298528,0.08473,58999.0,58991.0,0.08569]
[1723665298529,0.084731,58998.0,58991.0,0.08569]
[1723665298823,0.16948,58992.0,58991.0,0.00095]
[1723665299114,0.38910165,58992.0,58991.0,0.00095]
[1723665299316,0.33840906,58992.0,58991.0,0.00095]
[1723665299821,0.38910108,58992.0,58991.0,0.00095]
[1723665300013,0.33840906,58992.0,58991.0,0.00095]
[1723665300207,0.084741,58991.0,58989.0,0.084743]
[1723665300415,0.25366906,58992.0,58991.0,0.084741]
[1723665300611,0.25318495,58991.0,58989.0,0.21]
[1723665300813,0.05069202,58993.0,58990.0,0.17025426]
[1723665300814,0.25318495,58993.0,58990.0,0.17025426]
[1723665301109,0.41149202,58994.0,58991.0,0.084741]
[1723665301110,0.25547289,58992.0,58991.0,0.084741]
[1723665301310,0.05069202,58995.0,58991.0,0.16]
[1723665301517,0.25547289,58993.0,58992.0,0.08474]
[1723665301712,0.05069202,58994.0,58993.0,0.084738]
[1723665301912,0.30616491,58994.0,58993.0,0.254738]
[1723665302312,0.05069202,58994.0,58993.0,0.254738]
[1723665302516,0.30470966,58994.0,58993.0,0.254738]
[1723665303718,0.25401764,58994.0,58993.0,0.254738]
[1723665304117,0.05069202,58995.0,58994.0,0.084737]
[1723665304318,0.05069202,58995.0,58994.0,0.224737]
[1723665304519,0.25526984,58995.0,58994.0,0.224737]
[1723665304924,0.41149202,58999.0,58998.0,0.084731]
[1723665305224,0.61653272,58999.0,58998.0,0.084731]
[1723665305917,0.61653272,58999.0,58998.0,0.244731]
[1723665306113,0.25773272,58999.0,58998.0,0.65611134]
[1723665306313,0.25773272,58999.0,58998.0,0.690262]
[1723665306527,0.002,58999.0,58998.0,0.690262]
[1723665306920,0.05069202,59011.0,59008.0,0.084717]
[1723665307230,0.3216,59021.0,59015.0,0.084707]
[1723665307231,0.05069202,59016.0,59015.0,0.084707]
[1723665307526,0.05069202,59016.0,59009.0,0.06748124]
[1723665307527,0.084714,59010.0,59009.0,0.06748124]
[1723665307825,0.05068703,59011.0,59009.0,0.16]
[1723665308015,0.39593082,59028.0,59010.0,0.445514]
[1723665308016,0.05068703,59015.0,59010.0,0.445514]
[1723665308219,0.25424788,59012.0,59011.0,0.35895433]
[1723665308418,0.05068703,59018.0,59014.0,0.084708]
[1723665308419,0.25424788,59015.0,59014.0,0.084708]
[1723665308625,0.25424788,59017.0,59016.0,0.084705]
[1723665308822,0.05068703,59018.0,59017.0,0.084704]
[1723665309120,0.7549,59027.0,59019.0,0.084701]
[1723665309121,0.37228703,59021.0,59019.0,0.084701]
[1723665309327,0.37228703,59021.0,59019.0,0.244701]
[1723665309524,0.25523658,59020.0,59019.0,0.244701]
[1723665310821,0.05068703,59030.0,59029.0,0.084687]
[1723665311131,0.34329014,59030.0,59029.0,0.084687]
[1723665311626,0.34329014,59030.0,59026.0,0.3608]
[1723665311627,0.084688,59028.0,59026.0,0.3608]
[1723665311828,0.09,59028.0,59026.0,0.3608]
[1723665312020,0.14057538,59028.0,59027.0,0.084689]
[1723665312326,0.34244499,59028.0,59027.0,0.084689]
[1723665313928,0.35144499,59028.0,59027.0,0.084689]
[1723665314523,0.35144499,59028.0,59027.0,0.086689]
[1723665315634,0.35144499,59028.0,59027.0,0.23512633]
[1723665315635,0.26144499,59028.0,59027.0,0.23512633]
[1723665315824,0.20928978,59028.0,59027.0,0.31981633]
[1723665316025,0.009,59028.0,59027.0,0.31981633]
[1723665316329,0.009,59028.0,59027.0,0.23512633]
[1723665316829,0.009,59028.0,59027.0,0.23412633]
[1723665317032,0.009,59028.0,59027.0,0.23312633]
[1723665317233,0.3216,59040.0,59037.0,0.084675]
[1723665317423,0.084669,59042.0,59033.0,0.3608]
[1723665317631,0.25401295,59039.0,59033.0,0.5308]
[1723665317828,0.25401295,59039.0,59038.0,0.084673]
[1723665318027,0.3608,59043.0,59040.0,0.084671]
[1723665318238,0.25248287,59042.0,59040.0,0.084671]
[1723665318543,0.3608,59043.0,59040.0,0.084671]
[1723665318838,0.25248287,59042.0,59040.0,0.084671]
[1723665319137,0.25248287,59042.0,59040.0,0.244671]
[1723665319341,0.25248287,59042.0,59041.0,0.084669]
[1723665319529,0.25248287,59042.0,59041.0,0.993238]
[1723665320036,0.084648,59056.0,59053.0,0.084651]
[1723665320336,0.25412277,59056.0,59042.0,0.084667]
[1723665320639,0.25412277,59056.0,59054.0,0.08465]
[1723665321134,0.25412277,59056.0,59055.0,0.084649]
[1723665321337,0.24566277,59056.0,59055.0,0.084649]
[1723665321530,0.25166277,59056.0,59055.0,0.084649]
[1723665322132,0.084656,59050.0,59049.0,0.00025402]
[1723665322525,0.33895393,59050.0,59049.0,0.00025402]
[1723665322930,1.75474993,59050.0,59049.0,1e-08]
[1723665323136,1.75474993,59050.0,59029.0,0.3608]
[1723665323137,0.08467,59041.0,59031.0,0.084684]
[1723665323329,0.084677,59036.0,59035.0,0.084676]
[1723665323533,0.90532601,59040.0,59029.0,0.36951536]
[1723665323731,0.25525401,59036.0,59029.0,0.50951536]
[1723665323936,0.25525401,59036.0,59035.0,0.084678]
[1723665324136,0.33755829,59039.0,59038.0,0.084674]
[1723665324334,0.5654,59040.0,59029.0,0.36951536]
[1723665324335,0.5654,59040.0,59039.0,0.084672]
[1723665324641,0.81828529,59040.0,59039.0,0.084672]
[1723665325142,0.45748529,59040.0,59039.0,0.084672]
[1723665325537,0.25288529,59040.0,59039.0,0.084672]
[1723665326041,0.25367274,59041.0,59040.0,0.169342]
[1723665326242,0.00025324,59045.0,59044.0,0.084665]
[1723665326639,0.25503147,59045.0,59044.0,0.084665]
[1723665327338,0.26303147,59045.0,59044.0,0.245665]
[1723665327639,0.62383147,59045.0,59044.0,0.161]
[1723665327843,0.62383147,59045.0,59038.0,0.084673]
[1723665328144,0.4127,59044.0,59038.0,0.15]
[1723665328443,0.4127,59044.0,59027.0,0.29344302]
[1723665328444,0.084684,59031.0,59027.0,0.29344302]
[1723665328742,0.3608,59031.0,59027.0,0.37875402]
[1723665328944,0.33877649,59030.0,59027.0,0.37875402]
[1723665329136,0.25409149,59030.0,59029.0,0.084687]
[1723665329444,0.25409149,59030.0,59027.0,0.00025402]
[1723665329445,0.084688,59028.0,59027.0,0.00025402]
[1723665329632,0.279376,59028.0,59027.0,0.00025402]
[1723665329938,1.44195835,59028.0,59027.0,1e-08]
[1723665330141,0.084707,59015.0,59013.0,0.084709]
[1723665330439,0.084714,59010.0,59009.0,0.23716]
[1723665330939,0.084714,59010.0,59003.0,0.3608]
[1723665330940,0.33801742,59010.0,59003.0,0.3608]
[1723665331534,0.25330342,59010.0,59009.0,0.014]
[1723665331939,0.25303744,59011.0,59009.0,0.014]
[1723665332140,0.00025402,59012.0,59009.0,0.014]
[1723665332141,0.08496502,59012.0,59009.0,0.014]
[1723665332343,0.084714,59010.0,59009.0,0.014]
[1723665332642,0.084714,59010.0,59003.0,0.3608]
[1723665332643,0.084718,59008.0,59003.0,0.3648]
[1723665333048,0.25317144,59007.0,59003.0,0.3648]
[1723665333946,0.25317144,59007.0,59003.0,0.3658]
[1723665334129,0.25317144,59007.0,59006.0,0.08472]
[1723665335146,0.33788944,59007.0,59006.0,0.08472]
[1723665335335,0.084718,59007.0,59006.0,0.08472]
[1723665335536,0.34022068,59007.0,59006.0,0.08472]
[1723665335740,0.34122068,59007.0,59006.0,0.08472]
[1723665335940,0.25650268,59007.0,59006.0,0.08472]
[1723665337233,0.25550268,59007.0,59006.0,0.08472]
[1723665337437,0.25850268,59007.0,59006.0,0.09172]
[1723665337648,0.003,59007.0,59006.0,0.09172]
[1723665337941,0.25797549,59007.0,59006.0,0.09172]
[1723665338145,0.25497549,59007.0,59006.0,1.16012]
[1723665338345,0.25497549,59007.0,59006.0,1.16812]
[1723665338346,0.25597549,59007.0,59006.0,1.16812]
[1723665338645,0.25583768,59011.0,59010.0,0.084714]
[1723665338839,0.3608,59024.0,59010.0,0.14]
[1723665339145,0.25498593,59022.0,59014.0,0.3608]
[1723665339346,0.30498593,59022.0,59014.0,0.595508]
[1723665339649,0.05,59022.0,59014.0,0.5108]
[1723665339849,0.25498593,59021.0,59014.0,0.5108]
[1723665340041,0.37498593,59021.0,59014.0,0.5108]
[1723665340442,0.204699,59021.0,59018.0,0.084701]
[1723665340643,0.204699,59021.0,59018.0,0.234701]
[1723665340843,0.084701,59019.0,59018.0,0.15]
[1723665341048,0.194701,59019.0,59018.0,0.15]
[1723665341250,0.45052811,59019.0,59018.0,0.15]
[1723665342046,0.45052811,59019.0,59018.0,0.153]
[1723665342348,0.81132811,59019.0,59018.0,0.156]
[1723665343546,0.45052811,59019.0,59018.0,0.153]
[1723665343753,0.45152811,59019.0,59018.0,0.153]
[1723665343950,0.45152811,59019.0,59018.0,0.237702]
[1723665344348,0.45052811,59019.0,59018.0,0.237702]
[1723665344548,0.45152811,59019.0,59018.0,0.237702]
[1723665344847,0.45452811,59019.0,59018.0,0.234702]
[1723665345239,0.45452811,59019.0,59018.0,0.237702]
[1723665345240,0.45352811,59019.0,59018.0,0.237702]
[1723665345555,0.45052811,59019.0,59018.0,0.239702]
[1723665345755,0.36582711,59019.0,59018.0,0.239702]
[1723665346757,0.36582711,59019.0,59018.0,0.450602]
[1723665347057,0.00025324,59024.0,59023.0,0.084695]
[1723665347354,0.00025324,59024.0,59023.0,0.595495]
[1723665348049,0.00025324,59024.0,59023.0,1.503775]
[1723665348243,0.084678,59036.0,59034.0,0.084679]
[1723665348751,0.25285598,59035.0,59034.0,0.084679]
[1723665348949,0.33753398,59035.0,59034.0,0.234679]
[1723665349160,0.25285598,59035.0,59034.0,0.234679]
[1723665350451,0.25313483,59037.0,59034.0,0.234679]
[1723665350651,0.44780983,59037.0,59034.0,0.234679]
[1723665350851,0.44780983,59037.0,59034.0,0.235679]
[1723665350852,0.001,59035.0,59034.0,0.235679]
[1723665351247,0.24575309,59035.0,59034.0,0.235679]
[1723665351763,0.45043109,59035.0,59034.0,0.151]
[1723665352054,0.45343109,59035.0,59034.0,0.152]
[1723665352454,0.34343109,59035.0,59034.0,0.152]
[1723665352852,0.46343109,59035.0,59034.0,0.152]
[1723665353048,0.34343109,59035.0,59034.0,0.152]
[1723665353848,0.46343109,59035.0,59034.0,0.152]
[1723665354346,0.34343109,59035.0,59034.0,0.236679]
[1723665355055,0.46343109,59035.0,59034.0,0.236679]
[1723665355949,0.34343109,59035.0,59034.0,0.236679]
[1723665356254,0.45343109,59035.0,59034.0,0.236679]
[1723665356466,0.084684,59031.0,59030.0,0.084684]
[1723665356757,0.084684,59031.0,59029.0,0.00025402]
[1723665356758,0.084694,59024.0,59016.0,0.598]
[1723665356959,0.24525323,59024.0,59017.0,0.084704]
[1723665357152,0.51764037,59024.0,59017.0,0.084704]
[1723665357556,0.53492206,59024.0,59017.0,0.084704]
[1723665357751,0.084702,59018.0,59017.0,0.084704]
[1723665357946,0.45022806,59024.0,59020.0,0.084698]
[1723665357947,0.084698,59021.0,59020.0,0.084698]
[1723665358155,0.05058379,59022.0,59021.0,0.084698]
[1723665358359,0.05058379,59023.0,59022.0,0.084697]
[1723665358561,0.445493,59025.0,59022.0,0.084697]
[1723665358562,0.05058379,59024.0,59023.0,0.084695]
[1723665358860,0.30589104,59024.0,59023.0,0.254695]
[1723665359062,0.05058379,59024.0,59023.0,0.254695]
[1723665359360,0.38829049,59024.0,59023.0,0.254695]
[1723665360056,0.38829049,59024.0,59023.0,0.255695]
[1723665360057,0.39929049,59024.0,59023.0,0.255695]
[1723665360257,0.2640127,59024.0,59023.0,0.255695]
[1723665360560,0.2640127,59024.0,59023.0,0.34039]
[1723665360760,0.005,59024.0,59023.0,1.162975]
[1723665360956,0.005,59024.0,59023.0,0.762975]
[1723665361158,0.005,59024.0,59023.0,1.123775]
[1723665361354,0.005,59024.0,59023.0,1.523775]
[1723665361761,0.005,59024.0,59023.0,1.123775]
[1723665361957,0.005,59024.0,59023.0,0.615495]
[1723665362160,0.005,59024.0,59023.0,0.254695]
[1723665362661,0.005,59024.0,59023.0,0.762975]
[1723665362965,0.003,59024.0,59023.0,0.254695]
[1723665363269,0.003,59024.0,59023.0,0.255695]
[1723665363465,0.084701,59019.0,59018.0,0.00088]
[1723665363763,0.36686581,59024.0,59018.0,0.17]
[1723665363764,0.41141217,59020.0,59018.0,0.17]
[1723665363959,0.25386581,59019.0,59018.0,0.17]
[1723665364265,0.05061217,59019.0,59018.0,0.254701]
[1723665364468,0.305582,59019.0,59018.0,0.254701]
[1723665364767,0.25496983,59019.0,59018.0,0.254701]
[1723665365559,0.25496983,59019.0,59018.0,0.258701]
[1723665366776,0.390283,59019.0,59018.0,0.174]
[1723665367061,0.33967083,59019.0,59018.0,0.174]
[1723665367467,0.33967083,59019.0,59018.0,0.175]
[1723665369861,0.33967083,59019.0,59018.0,0.005]
[1723665370261,0.52437183,59019.0,59018.0,0.005]
[1723665370472,0.52437183,59019.0,59015.0,1e-08]
[1723665370473,0.16941,59016.0,59015.0,1e-08]
[1723665370662,0.51120447,59016.0,58998.0,0.05067146]
[1723665370970,0.084732,58998.0,58997.0,0.00879176]
[1723665371269,0.084735,58995.0,58994.0,0.05067146]
[1723665371467,0.3608,59000.0,58999.0,0.08473]
[1723665371769,0.445528,59000.0,58999.0,0.08473]
[1723665372672,0.446528,59000.0,58999.0,0.009]
[1723665373065,0.70230892,59000.0,58999.0,0.009]
[1723665373467,0.70230892,59000.0,58999.0,0.09373]
[1723665373660,0.70130892,59000.0,58999.0,0.08773]
[1723665373864,0.70130892,59000.0,58999.0,0.23773]
[1723665374063,0.61658092,59000.0,58999.0,0.23773]
[1723665374277,0.61758092,59000.0,58999.0,0.23773]
[1723665375070,0.36105424,59005.0,59004.0,0.084723]
[1723665375271,0.36105424,59005.0,59004.0,0.234723]
[1723665375569,0.61458264,59005.0,59004.0,0.234723]
[1723665376069,0.25378264,59005.0,59004.0,1.103963]
[1723665376262,0.68432001,59016.0,59015.0,0.084707]
[1723665376462,0.4808,59016.0,59015.0,0.084707]
[1723665376665,0.7342272,59016.0,59015.0,0.084707]
[1723665377371,0.3734272,59016.0,59015.0,0.084707]
[1723665379067,0.3744272,59016.0,59015.0,0.084707]
[1723665379268,0.2544272,59016.0,59015.0,0.084707]
[1723665379669,0.2544272,59016.0,59015.0,0.085707]
[1723665379670,0.2534272,59016.0,59015.0,0.085707]
[1723665379867,0.2534272,59016.0,59015.0,0.235707]
[1723665380073,0.3608,59020.0,59019.0,0.084701]
[1723665380368,0.61636002,59020.0,59019.0,0.084701]
[1723665380672,0.61636002,59020.0,59015.0,0.001]
[1723665380673,1.01946002,59020.0,59015.0,0.001]
[1723665380863,0.084705,59016.0,59015.0,0.001]
[1723665381265,0.33984976,59016.0,59015.0,0.001]
[1723665381662,0.33984976,59016.0,59012.0,0.0089444]
[1723665381866,0.25514476,59016.0,59015.0,0.084707]
[1723665382067,0.25514476,59016.0,59010.0,0.22025424]
[1723665382068,0.084708,59015.0,59010.0,0.00931144]
[1723665382269,0.1,59015.0,59012.0,0.08471]
[1723665382475,0.25314956,59014.0,59012.0,0.08471]
[1723665382672,0.37314956,59014.0,59012.0,0.08471]
[1723665382870,0.37314956,59014.0,59013.0,0.08471]
[1723665383573,0.25314956,59014.0,59013.0,0.08471]
[1723665384667,0.33785756,59014.0,59013.0,0.08471]
[1723665385069,0.25314956,59014.0,59013.0,0.08471]
[1723665385271,0.25314956,59014.0,59013.0,0.08771]
[1723665385677,0.25314956,59014.0,59013.0,0.22771]
[1723665386274,0.13535094,59018.0,59016.0,0.084705]
[1723665386473,0.50073474,59018.0,59016.0,0.254705]
[1723665386775,0.084708,59014.0,59013.0,0.004]
[1723665387072,0.084713,59011.0,59010.0,0.00025424]
[1723665387266,0.23536094,59011.0,59010.0,0.00025424]
[1723665387465,0.48855608,59011.0,59010.0,0.00025424]
[1723665387664,0.084724,59003.0,59002.0,0.084725]
[1723665387864,0.194724,59003.0,59002.0,0.084725]
[1723665388066,0.194724,59003.0,58999.0,0.23724]
[1723665388067,0.084728,59000.0,58999.0,0.321969]
[1723665388474,0.33866043,59000.0,58999.0,0.321969]
[1723665388675,0.25393243,59000.0,58999.0,0.321969]
[1723665389072,0.05089526,59005.0,59000.0,0.084728]
[1723665389073,0.084726,59002.0,59000.0,0.084728]
[1723665389479,0.25367391,59001.0,59000.0,0.084728]
[1723665389679,0.33840091,59001.0,59000.0,0.084728]
[1723665390081,0.084727,59001.0,59000.0,0.084728]
[1723665390279,0.33829442,59001.0,59000.0,0.084728]
[1723665390969,0.33929442,59001.0,59000.0,0.084728]
[1723665391170,0.25456742,59001.0,59000.0,0.244728]
[1723665391380,0.25361742,59001.0,59000.0,0.244728]
[1723665391876,0.25361742,59001.0,59000.0,0.29535122]
[1723665392071,0.25361742,59001.0,59000.0,0.244728]
[1723665392276,0.25361742,59001.0,58997.0,0.41142322]
[1723665392483,0.25361742,59001.0,58997.0,0.56142322]
[1723665392677,0.25361742,59001.0,58997.0,0.5108]
[1723665393180,0.08473,58999.0,58997.0,0.595532]
[1723665393575,0.25317892,58998.0,58997.0,0.595532]
[1723665394180,0.25317892,58998.0,58997.0,0.234732]
[1723665394687,0.001,59001.0,59000.0,0.169456]
[1723665394879,0.001,59001.0,59000.0,0.309456]
[1723665395081,0.25359025,59001.0,59000.0,0.224728]
[1723665395282,0.25359025,59001.0,59000.0,0.27538175]
[1723665395474,0.25259025,59001.0,59000.0,0.224728]
[1723665395781,0.25400686,59004.0,59003.0,0.084723]
[1723665396085,0.00025424,59005.0,59004.0,0.084723]
[1723665396283,0.00025424,59005.0,59004.0,0.244723]
[1723665396478,0.25445367,59005.0,59004.0,0.244723]
[1723665398181,0.25645367,59005.0,59004.0,0.244723]
[1723665398677,0.25845367,59005.0,59004.0,0.244723]
[1723665398877,0.25645367,59005.0,59004.0,0.244723]
[1723665399083,0.25645367,59005.0,59004.0,0.249723]
[1723665400878,0.25645367,59005.0,59004.0,0.610523]
[1723665401073,0.25445367,59005.0,59004.0,0.610523]
[1723665401383,0.25445367,59005.0,59004.0,0.67493351]
[1723665401879,0.25445367,59005.0,59004.0,0.607523]
[1723665402078,0.25445367,59005.0,59004.0,0.609523]
[1723665402978,0.25645367,59005.0,59004.0,0.611523]
[1723665403383,0.25645367,59005.0,59004.0,0.250723]
[1723665403693,0.25645367,59005.0,59004.0,0.696246]
[1723665403882,0.25645367,59005.0,59004.0,0.76365651]
[1723665404085,0.25645367,59005.0,59004.0,0.335446]
[1723665404384,0.25645367,59005.0,59004.0,0.250723]
[1723665404580,0.30709469,59005.0,59004.0,0.250723]
[1723665404781,0.25645367,59005.0,59004.0,0.250723]
[1723665404983,0.25545367,59005.0,59004.0,0.244723]
[1723665405185,0.25645367,59005.0,59004.0,0.250723]
[1723665405385,0.30609469,59005.0,59004.0,0.250723]
[1723665405586,0.30709469,59005.0,59004.0,0.250723]
[1723665405892,0.25545367,59005.0,59004.0,0.244723]
[1723665406104,0.25545367,59005.0,58997.0,0.3608]
[1723665406105,1.64569367,59005.0,58998.0,0.06741051]
[1723665406390,1.64569367,59005.0,58994.0,0.00025424]
[1723665406391,0.084736,58995.0,58994.0,0.00025424]
[1723665406591,0.084736,58995.0,58994.0,0.23499124]
[1723665406790,0.3378873,58995.0,58994.0,0.23499124]
[1723665407186,0.3378873,58995.0,58994.0,0.00025424]
[1723665407383,0.48854764,58995.0,58994.0,0.00025424]
[1723665407583,0.4378873,58995.0,58994.0,0.00025424]
[1723665408183,0.3378873,58995.0,58994.0,0.00025424]
[1723665408591,0.3388873,58995.0,58994.0,0.00125424]
[1723665409197,0.3398873,58995.0,58994.0,0.00125424]
[1723665410383,0.39053809,58995.0,58994.0,0.00125424]
[1723665411285,0.39053809,58995.0,58994.0,0.08599124]
[1723665412590,0.3398873,58995.0,58994.0,0.08599124]
[1723665413389,0.39055128,58995.0,58994.0,0.08599124]
[1723665413595,0.39055128,58995.0,58994.0,0.22599124]
[1723665413988,0.3398873,58995.0,58994.0,0.22599124]
[1723665414497,0.39055128,58995.0,58994.0,0.22599124]
[1723665414897,0.3398873,58995.0,58994.0,0.22599124]
[1723665415997,0.39055128,58995.0,58994.0,0.22599124]
[1723665416191,0.39056213,58995.0,58994.0,0.22599124]
[1723665416497,0.50056213,58995.0,58994.0,0.22599124]
[1723665416686,0.8106873,58995.0,58994.0,0.00125424]
[1723665416892,0.8106873,58995.0,58994.0,0.00076816]
[1723665417298,0.08474,58993.0,58992.0,0.084739]
[1723665417491,0.20474,58993.0,58992.0,0.084739]
[1723665417692,0.45793578,58993.0,58992.0,0.084739]
[1723665420496,0.46093578,58993.0,58992.0,0.084739]
[1723665420699,0.51357877,58993.0,58992.0,0.084739]
[1723665421087,0.51355914,58993.0,58992.0,0.084739]
[1723665421297,0.51356141,58993.0,58992.0,0.084739]
[1723665421495,0.51356141,58993.0,58989.0,0.00014143]
[1723665421496,0.46293578,58993.0,58989.0,0.00014143]
[1723665421790,0.46293578,58993.0,58981.0,0.06741051]
[1723665421791,0.6539,58990.0,58976.0,0.084762]
[1723665421988,0.6539,58990.0,58977.0,0.084761]
[1723665421989,0.1353754,58978.0,58977.0,0.084761]
[1723665422199,0.084761,58978.0,58977.0,0.084761]
[1723665422501,0.34045608,58978.0,58977.0,0.084761]
[1723665422699,0.34059751,58978.0,58977.0,0.084761]
[1723665422891,0.084764,58975.0,58972.0,0.00931285]
[1723665423091,0.3608,58973.0,58972.0,0.09408185]
[1723665423490,0.61457277,58973.0,58972.0,0.09408185]
[1723665423697,0.61457277,58973.0,58972.0,0.00025424]
[1723665424010,0.61457277,58973.0,58963.0,0.00874963]
[1723665424011,0.084769,58972.0,58963.0,0.00874963]
[1723665424193,0.084769,58972.0,58962.0,0.084783]
[1723665424194,0.3608,58964.0,58962.0,0.084783]
[1723665424392,0.084782,58963.0,58962.0,0.084783]
[1723665424598,0.33851943,58963.0,58962.0,0.09349176]
[1723665426400,0.33851943,58963.0,58957.0,0.00025424]
[1723665426401,0.73553743,58963.0,58957.0,0.00025424]
[1723665426700,0.445589,58958.0,58957.0,0.00025424]
[1723665427097,0.70012089,58958.0,58957.0,0.00025424]
[1723665429403,0.61533189,58958.0,58957.0,0.08504424]
[1723665429804,0.61438189,58958.0,58957.0,0.08504424]
[1723665430200,0.25453189,58958.0,58957.0,0.08504424]
[1723665430502,0.3608,58958.0,58957.0,0.08504424]
[1723665431002,0.61779176,58958.0,58957.0,0.08504424]
[1723665431198,0.61879176,58958.0,58957.0,0.08504424]
[1723665432005,0.61879176,58958.0,58957.0,0.23504424]
[1723665432801,0.61779176,58958.0,58957.0,0.23504424]
[1723665433705,0.25699176,58958.0,58957.0,0.23504424]
[1723665434406,0.61779176,58958.0,58957.0,0.15025424]
[1723665434709,0.82258076,58958.0,58957.0,0.00025424]
[1723665434903,0.82258076,58958.0,58949.0,0.00016663]
[1723665435110,0.3608,58951.0,58949.0,0.16016663]
[1723665435519,0.2543468,58950.0,58949.0,0.16016663]
[1723665435895,0.2543468,58950.0,58949.0,0.25388038]
[1723665437611,0.2553468,58950.0,58949.0,0.25388038]
[1723665437804,0.2553468,58950.0,58949.0,1.12360038]
[1723665438207,0.2553468,58950.0,58949.0,1.20840238]
[1723665438402,0.2563468,58950.0,58949.0,1.20840238]
[1723665439003,0.2553468,58950.0,58949.0,0.61468038]
[1723665439209,0.2563468,58950.0,58949.0,0.25388038]
[1723665439796,0.2553468,58950.0,58949.0,0.25388038]
[1723665440003,0.2563468,58950.0,58949.0,0.25388038]
[1723665440200,0.2563468,58950.0,58949.0,0.24496863]
[1723665440609,0.2563468,58950.0,58949.0,0.25405778]
[1723665441205,0.2553468,58950.0,58949.0,0.25405778]
[1723665441503,0.2563468,58950.0,58949.0,0.25405778]
[1723665442300,0.00025424,58955.0,58954.0,0.084795]
[1723665442506,0.00025424,58955.0,58954.0,0.244795]
[1723665442702,0.25404992,58955.0,58954.0,0.32959]
[1723665443112,0.25404992,58955.0,58954.0,0.69039]
[1723665443712,0.25404992,58955.0,58954.0,1.19927]
[1723665443911,0.25504992,58955.0,58954.0,1.19927]
[1723665444108,0.25504992,58955.0,58954.0,1.59927]
[1723665445017,0.25504992,58955.0,58954.0,1.60027]
[1723665445716,0.002,58955.0,58954.0,1.686065]
[1723665445916,0.002,58955.0,58954.0,1.60127]
[1723665446310,0.001,58955.0,58954.0,1.60127]
[1723665446610,0.002,58955.0,58954.0,1.60327]
[1723665447007,0.3608,58967.0,58954.0,1.60327]
[1723665447008,0.3608,58967.0,58954.0,1.43368]
[1723665447315,0.3608,58967.0,58966.0,0.084777]
[1723665447509,0.3608,58967.0,58966.0,0.244777]
[1723665447709,0.6143925,58967.0,58966.0,0.244777]
[1723665447907,0.6143925,58967.0,58959.0,0.084787]
[1723665447908,0.7143925,58967.0,58954.0,0.003]
[1723665448222,0.085793,58955.0,58954.0,0.003]
[1723665448414,0.205793,58955.0,58954.0,0.003]
[1723665448611,0.39223961,58955.0,58954.0,0.002]
[1723665448812,0.34167255,58955.0,58954.0,0.002]
[1723665449409,0.39223961,58955.0,58954.0,0.002]
[1723665449619,0.34067255,58955.0,58954.0,0.001]
[1723665450416,0.34067255,58955.0,58954.0,0.085795]
[1723665451021,0.39128133,58955.0,58954.0,0.085795]
[1723665451214,0.34067255,58955.0,58954.0,0.085795]
[1723665451618,0.25587955,58955.0,58954.0,0.085795]
[1723665451817,0.30648828,58955.0,58954.0,0.085795]
[1723665452118,0.25587955,58955.0,58954.0,0.085795]
[1723665453224,0.34067255,58955.0,58954.0,0.085795]
[1723665453623,0.40815841,58955.0,58954.0,0.001]
[1723665453821,0.40815841,58955.0,58949.0,0.00042087]
[1723665453822,0.084796,58953.0,58949.0,0.00042087]
[1723665454019,0.42834202,58951.0,58949.0,0.00042087]
[1723665454323,0.32361796,58950.0,58949.0,0.00042087]
[1723665454522,0.34087594,58950.0,58949.0,0.00042087]
[1723665454717,0.34087594,58950.0,58949.0,0.08522287]
[1723665455020,0.34087594,58950.0,58949.0,0.25522287]
[1723665455021,0.25607594,58950.0,58949.0,0.25522287]
[1723665455219,0.30674803,58950.0,58949.0,0.25522287]
[1723665455421,0.25607594,58950.0,58949.0,0.25522287]
[1723665455618,0.05067209,58951.0,58950.0,0.0848]
[1723665455817,0.05067209,58951.0,58950.0,0.2248]
[1723665456018,0.30622436,58951.0,58950.0,0.2248]
[1723665456217,0.25555227,58951.0,58950.0,0.2248]
[1723665456420,0.3062391,58951.0,58950.0,0.2248]
[1723665456625,0.05068683,58951.0,58950.0,0.2248]
[1723665456836,0.30487273,58951.0,58950.0,0.2248]
[1723665457122,0.2541859,58951.0,58950.0,0.2258]
[1723665457324,0.30487273,58951.0,58950.0,0.5866]
[1723665457526,0.05068683,58953.0,58952.0,0.084797]
[1723665457716,0.30558359,58954.0,58953.0,0.084796]
[1723665458029,0.05068683,58954.0,58953.0,0.29556948]
[1723665458528,0.32243878,58956.0,58955.0,0.084793]
[1723665458714,0.25489676,58956.0,58955.0,0.244793]
[1723665458919,0.2543385,58957.0,58956.0,0.084792]
[1723665459119,0.3608,58958.0,58957.0,0.08479]
[1723665459421,0.3608,58958.0,58957.0,0.24479]
[1723665459628,0.61355855,58958.0,58957.0,0.24479]
[1723665461232,0.61855855,58958.0,58957.0,0.24479]
[1723665461926,0.25275855,58958.0,58957.0,0.24579]
[1723665462433,0.084785,58961.0,58959.0,0.084787]
[1723665462721,0.25529967,58960.0,58959.0,0.234787]
[1723665463127,0.30602121,58960.0,58959.0,0.234787]
[1723665463426,0.3236043,58963.0,58959.0,0.15]
[1723665463730,0.05072011,58961.0,58960.0,0.084786]
[1723665464118,0.30678239,58961.0,58960.0,0.084786]
[1723665464730,0.25606228,58961.0,58960.0,0.224786]
[1723665465031,0.3608,58965.0,58964.0,0.08478]
[1723665465032,0.41152011,58965.0,58964.0,0.08478]
[1723665465229,0.3608,58965.0,58964.0,0.22478]
[1723665465430,0.61351763,58965.0,58964.0,0.22478]
[1723665465821,0.66423774,58965.0,58964.0,0.08478]
[1723665466024,0.084783,58962.0,58961.0,0.05076396]